bitfinex/quotes_SOLUSD_20250206
["timestamp","ask_amount","ask_price","bid_price","bid_amount"]
[1738870263511,68.81750476,190.03,189.96,38.81750476]
[1738870263711,68.81750476,190.01,189.94,54.88301954]
[1738870263911,68.81750476,189.99,189.94,16.06551478]
[1738870264087,30.0,189.97,189.94,16.06551478]
[1738870264286,68.81750476,189.97,189.91,38.81750476]
[1738870264699,68.81750476,189.97,189.86,16.06551478]
[1738870264700,68.81750476,189.97,189.9,38.81750476]
[1738870265008,30.0,189.95,189.89,38.81750476]
[1738870265594,32.6322,189.95,189.89,38.81750476]
[1738870265789,71.44970476,189.95,189.88,38.81750476]
[1738870266484,30.0,189.94,189.88,38.81750476]
[1738870267191,41.44970476,189.95,189.88,38.81750476]
[1738870267391,38.81750476,189.97,189.9,38.81750476]
[1738870267895,30.0,190.0,189.94,38.81750476]
[1738870268207,68.81750476,190.02,189.95,38.81750476]
[1738870268384,30.0,190.0,189.95,38.81750476]
[1738870268581,0.12549,189.97,189.92,38.81750476]
[1738870268802,30.0,189.96,189.9,38.81750476]
[1738870268994,30.0,189.96,189.88,44.08390476]
[1738870268995,38.81750476,189.95,189.88,44.08390476]
[1738870269195,30.0,189.94,189.88,44.08390476]
[1738870269487,30.0,189.84,189.82,0.2]
[1738870269696,13.78831853,189.83,189.82,0.2]
[1738870270010,30.0,189.85,189.72,19.4482]
[1738870270191,30.0,189.85,189.73,0.79025483]
[1738870270392,3.6563,189.93,189.72,20.4482]
[1738870270393,30.0,189.82,189.72,18.4482]
[1738870270608,30.0,189.8,189.72,5.2709]
[1738870270815,30.0,189.8,189.75,38.81750476]
[1738870270983,0.12549,189.84,189.79,38.81750476]
[1738870270984,30.0,189.84,189.79,38.81750476]
[1738870271494,32.6335,189.86,189.8,38.81750476]
[1738870271699,30.0,189.86,189.8,38.81750476]
[1738870271899,68.81750476,189.86,189.8,38.81750476]
[1738870272415,30.0,189.84,189.78,38.81750476]
[1738870272586,71.45100476,189.86,189.79,38.81750476]
[1738870272988,68.81750476,189.86,189.79,38.81750476]
[1738870273201,38.81750476,189.81,189.75,38.81750476]
[1738870273407,68.81750476,189.8,189.73,44.08810476]
[1738870273714,68.81750476,189.8,189.72,38.81750476]
[1738870273715,38.81750476,189.79,189.72,38.81750476]
[1738870273895,30.0,189.75,189.69,0.03]
[1738870274096,68.81750476,189.75,189.69,0.03]
[1738870274409,38.81750476,189.7,189.69,0.03]
[1738870274754,38.92973489,189.7,189.69,0.03]
[1738870275209,45.41373489,189.7,189.69,0.03]
[1738870275410,30.0,189.66,189.58,44.09220476]
[1738870275597,38.81750476,189.63,189.56,38.81750476]
[1738870275804,2.6361,189.67,189.56,38.81750476]
[1738870275805,38.81750476,189.62,189.56,38.81750476]
[1738870276006,38.81750476,189.64,189.57,38.81750476]
[1738870276208,38.81750476,189.63,189.56,38.81750476]
[1738870276385,38.81750476,189.61,189.54,44.09340476]
[1738870276587,38.81750476,189.59,189.52,44.09370476]
[1738870276803,38.81750476,189.58,189.51,44.09420476]
[1738870277001,30.0,189.64,189.52,1.0]
[1738870277207,30.0,189.69,189.54,21.0]
[1738870277511,30.0,189.69,189.56,5.2753]
[1738870277812,8.22923013,189.7,189.57,0.79102958]
[1738870277989,0.11223013,189.7,189.58,2.0]
[1738870278191,0.11223013,189.7,189.65,38.81750476]
[1738870278396,0.11223013,189.7,189.64,38.81750476]
[1738870278613,0.11223013,189.7,189.65,38.81750476]
[1738870278816,0.11223013,189.7,189.69,38.81750476]
[1738870279503,3.013e-05,189.7,189.69,38.81750476]
[1738870279697,3.013e-05,189.7,189.69,44.08920476]
[1738870279893,0.10271285,189.71,189.7,2.0]
[1738870279894,4.298e-05,189.71,189.7,2.0]
[1738870280096,7.437e-05,189.74,189.7,80.21380952]
[1738870280389,7.437e-05,189.74,189.73,38.81750476]
[1738870280616,7.437e-05,189.74,189.69,18.451]
[1738870280811,7.437e-05,189.74,189.69,19.24155141]
[1738870281292,7.437e-05,189.74,189.72,38.81750476]
[1738870281497,7.437e-05,189.74,189.73,38.81750476]
[1738870281710,7.437e-05,189.74,189.73,44.08810476]
[1738870282813,6.294e-05,189.75,189.73,44.08810476]
[1738870283109,6.294e-05,189.75,189.74,38.81750476]
[1738870283695,3.504e-05,189.76,189.75,2.0]
[1738870283894,6.386e-05,189.78,189.75,39.81750476]
[1738870284100,6.386e-05,189.78,189.74,12.54341876]
[1738870284101,6.386e-05,189.78,189.77,38.81750476]
[1738870284512,6.386e-05,189.78,189.76,38.81750476]
[1738870284822,6.386e-05,189.78,189.71,5.2712]
[1738870285021,6.386e-05,189.78,189.71,19.23963348]
[1738870285403,6.386e-05,189.78,189.71,5.2712]
[1738870285600,6.386e-05,189.78,189.67,13.1803]
[1738870285918,6.386e-05,189.78,189.72,38.81750476]
[1738870286101,6.386e-05,189.78,189.73,38.81750476]
[1738870286813,6.386e-05,189.78,189.71,38.81750476]
[1738870286814,38.81756862,189.78,189.71,38.81750476]
[1738870287113,6.386e-05,189.78,189.72,38.81750476]
[1738870287908,6.386e-05,189.78,189.72,44.08810476]
[1738870288416,6.386e-05,189.78,189.67,38.81750476]
[1738870288417,38.81750476,189.74,189.67,38.81750476]
[1738870288714,38.81750476,189.74,189.64,6.3069]
[1738870288715,38.81750476,189.76,189.69,38.81750476]
[1738870288912,6.386e-05,189.78,189.72,38.81750476]
[1738870289115,0.06306386,189.78,189.73,38.81750476]
[1738870289308,0.06306386,189.78,189.72,38.81750476]
[1738870289918,38.88056862,189.78,189.72,44.08820476]
[1738870290299,38.81750476,189.77,189.7,38.81750476]
[1738870290522,0.06306386,189.78,189.72,38.81750476]
[1738870290730,0.06306386,189.78,189.75,38.81750476]
[1738870290918,0.06306386,189.78,189.76,38.81750476]
[1738870291222,0.06306386,189.78,189.67,1.79049702]
[1738870291406,0.06306386,189.78,189.68,1.0]
[1738870291608,0.06306386,189.78,189.75,38.81750476]
[1738870292328,0.06306386,189.78,189.73,38.81750476]
[1738870292501,0.06306386,189.78,189.71,38.81750476]
[1738870292502,38.88056862,189.78,189.71,38.81750476]
[1738870292834,38.81750476,189.76,189.69,38.81750476]
[1738870293116,0.06306386,189.78,189.73,38.81750476]
[1738870293303,0.06306386,189.78,189.72,38.81750476]
[1738870294019,0.06306386,189.78,189.74,5.2703]
[1738870294321,0.06306386,189.78,189.74,44.08780476]
[1738870294696,0.10995773,189.76,189.74,5.2703]
[1738870294897,0.10995773,189.76,189.75,39.60782605]
[1738870295125,0.10995773,189.76,189.75,38.81750476]
[1738870295695,5.773e-05,189.76,189.75,39.81750476]
[1738870295897,4.728e-05,189.79,189.78,2.0]
[1738870296140,2.001e-05,189.83,189.82,1.0]
[1738870296436,0.063,189.89,189.83,22.0]
[1738870296722,0.063,189.89,189.86,1.0]
[1738870296902,0.063,189.89,189.88,38.81750476]
[1738870297237,0.063,189.89,189.88,77.63500952]
[1738870297423,0.063,189.89,189.88,38.81750476]
[1738870298041,0.063,189.89,189.8,13.1717]
[1738870298322,38.81750476,189.86,189.78,5.2692]
[1738870298510,38.81750476,189.85,189.79,38.81750476]
[1738870298706,38.81750476,189.86,189.79,38.81750476]
[1738870299111,38.81750476,189.85,189.78,44.08670476]
[1738870299809,30.0,189.87,189.74,5.2701]
[1738870300125,38.81750476,189.82,189.75,38.81750476]
[1738870300317,38.81750476,189.79,189.72,38.81750476]
[1738870300524,38.81750476,189.77,189.71,5.271]
[1738870300911,38.81750476,189.79,189.72,38.81750476]
[1738870301310,38.81750476,189.77,189.7,38.81750476]
[1738870301720,38.81750476,189.77,189.72,0.03]
[1738870302602,38.81750476,189.77,189.7,44.08890476]
[1738870303205,30.0,189.74,189.65,6.06332882]
[1738870303411,38.81750476,189.72,189.65,38.81750476]
[1738870304224,38.81750476,189.68,189.62,38.81750476]
[1738870304405,38.81750476,189.68,189.62,44.09110476]
[1738870304608,38.81750476,189.67,189.6,38.81750476]
[1738870305312,38.81750476,189.64,189.57,38.81750476]
[1738870305499,38.81750476,189.62,189.55,38.81750476]
[1738870305702,38.81750476,189.61,189.54,38.81750476]
[1738870305919,38.81750476,189.62,189.55,38.81750476]
[1738870306116,38.81750476,189.66,189.59,38.81750476]
[1738870306335,38.81750476,189.64,189.58,38.81750476]
[1738870306629,38.81750476,189.64,189.52,13.1912]
[1738870306630,38.81750476,189.64,189.57,38.81750476]
[1738870307015,38.81750476,189.63,189.56,38.81750476]
[1738870307213,68.81750476,189.64,189.57,38.81750476]
[1738870307419,38.81750476,189.64,189.57,38.81750476]
[1738870307821,6.1682,189.67,189.56,5.2753]
[1738870307822,44.98570476,189.67,189.6,38.81750476]
[1738870308019,47.62180476,189.67,189.6,38.81750476]
[1738870308224,38.81750476,189.65,189.58,38.81750476]
[1738870308421,38.81750476,189.63,189.56,44.09280476]
[1738870309003,77.62180476,189.67,189.6,38.81750476]
[1738870309222,6.1682,189.67,189.63,38.81750476]
[1738870309521,41.45320476,189.7,189.63,38.81750476]
[1738870309937,38.81750476,189.7,189.63,38.81750476]
[1738870310113,2.6356,189.71,189.65,38.81750476]
[1738870310508,2.6356,189.71,189.66,38.81750476]
[1738870310723,41.45310476,189.71,189.64,38.81750476]
[1738870311708,36.5882,189.74,189.65,38.81750476]
[1738870311709,38.81750476,189.72,189.65,38.81750476]
[1738870311913,2.6349,189.76,189.71,38.81750476]
[1738870312115,71.45240476,189.76,189.69,38.81750476]
[1738870312330,32.6349,189.76,189.64,5.273]
[1738870312529,30.0,189.74,189.62,5.2737]
[1738870312744,30.0,189.72,189.62,5.2737]
[1738870313230,2.6356,189.71,189.61,5.2739]
[1738870313414,30.0,189.67,189.57,5.275]
[1738870313609,38.81750476,189.63,189.56,38.81750476]
[1738870314015,38.81750476,189.6,189.53,38.81750476]
[1738870314222,38.81750476,189.58,189.51,38.81750476]
[1738870314520,38.81750476,189.59,189.52,38.81750476]
[1738870314721,0.09947526,189.54,189.53,38.81750476]
[1738870315119,0.09947526,189.54,189.53,44.09370476]
[1738870315627,0.09947526,189.54,189.53,38.81750476]
[1738870315832,0.09947526,189.54,189.51,38.81750476]
[1738870316012,0.09947526,189.54,189.53,38.81750476]
[1738870318116,0.09947526,189.54,189.51,38.81750476]
[1738870318427,0.09947526,189.54,189.49,38.81750476]
[1738870318832,0.09947526,189.54,189.52,38.81750476]
[1738870319032,0.09947526,189.54,189.46,0.7914549]
[1738870319033,0.09947526,189.54,189.53,38.81750476]
[1738870319333,0.09947526,189.54,189.53,44.09370476]
[1738870320039,0.09947526,189.54,189.53,44.88484236]
[1738870320040,7.526e-05,189.54,189.53,44.88484236]
[1738870320411,7.526e-05,189.54,189.53,44.09370476]
[1738870320622,7.526e-05,189.54,189.53,38.81750476]
[1738870320815,7.526e-05,189.54,189.52,38.81750476]
[1738870321041,7.526e-05,189.54,189.49,5.277]
[1738870321042,7.526e-05,189.54,189.49,38.81750476]
[1738870321333,7.526e-05,189.54,189.5,38.81750476]
[1738870321740,7.526e-05,189.54,189.49,38.81750476]
[1738870322328,7.526e-05,189.54,189.48,5.2776]
[1738870322329,7.526e-05,189.54,189.53,38.81750476]
[1738870322847,7.526e-05,189.54,189.44,2.0]
[1738870322848,7.526e-05,189.54,189.44,5.2787]
[1738870323041,30.00007526,189.54,189.42,13.1979]
[1738870323341,7.526e-05,189.54,189.42,13.1979]
[1738870323641,30.0,189.52,189.41,5.2795]
[1738870323834,30.0,189.52,189.38,5.2803]
[1738870323835,30.0,189.48,189.38,5.2803]
[1738870324143,38.81750476,189.46,189.39,38.81750476]
[1738870324323,68.81750476,189.48,189.41,38.81750476]
[1738870324530,38.81750476,189.49,189.42,38.81750476]
[1738870325037,38.81750476,189.5,189.43,38.81750476]
[1738870325214,38.81750476,189.52,189.45,38.81750476]
[1738870325419,6.2172,189.53,189.47,38.81750476]
[1738870325637,45.03470476,189.53,189.46,38.81750476]
[1738870325824,6.2172,189.53,189.48,38.81750476]
[1738870326023,6.2172,189.53,189.49,38.81750476]
[1738870326219,7.526e-05,189.54,189.52,38.81750476]
[1738870326439,7.526e-05,189.54,189.48,38.81750476]
[1738870326622,41.45558002,189.54,189.47,38.81750476]
[1738870327020,41.45558002,189.54,189.46,38.81750476]
[1738870327021,38.81750476,189.53,189.46,38.81750476]
[1738870327237,38.81750476,189.52,189.46,38.81750476]
[1738870327440,38.81750476,189.49,189.43,38.81750476]
[1738870327743,38.81750476,189.5,189.43,38.81750476]
[1738870328042,9.23297526,189.54,189.43,38.81750476]
[1738870328043,38.81750476,189.49,189.43,38.81750476]
[1738870328247,38.81750476,189.47,189.4,38.81750476]
[1738870328423,38.81750476,189.46,189.4,38.81750476]
[1738870328622,38.81750476,189.46,189.39,38.81750476]
[1738870328818,38.81750476,189.5,189.43,38.81750476]
[1738870329027,38.81750476,189.51,189.36,1.79187035]
[1738870329233,38.81750476,189.5,189.42,5.279]
[1738870329416,38.81750476,189.51,189.45,38.81750476]
[1738870329623,38.81750476,189.52,189.42,5.279]
[1738870329821,38.81750476,189.52,189.45,38.81750476]
[1738870330016,38.81750476,189.53,189.47,38.81750476]
[1738870330445,1.58427526,189.54,189.42,18.4771]
[1738870330446,38.81750476,189.51,189.45,38.81750476]
[1738870330624,38.81750476,189.53,189.46,38.81750476]
[1738870330947,38.81750476,189.53,189.47,38.81750476]
[1738870331244,7.526e-05,189.54,189.43,18.4763]
[1738870331438,7.526e-05,189.54,189.52,38.81750476]
[1738870331646,7.526e-05,189.54,189.5,38.81750476]
[1738870332450,7.526e-05,189.54,189.44,0.79138503]
[1738870332622,38.81750476,189.5,189.43,44.09640476]
[1738870332944,38.81750476,189.5,189.44,38.81750476]
[1738870333141,38.81750476,189.53,189.46,38.81750476]
[1738870333529,7.526e-05,189.54,189.42,1.79151301]
[1738870333733,7.526e-05,189.54,189.5,38.81750476]
[1738870333933,7.526e-05,189.54,189.51,38.81750476]
[1738870334131,7.526e-05,189.54,189.5,38.81750476]
[1738870334525,7.526e-05,189.54,189.53,38.81750476]
[1738870334738,0.11608065,189.54,189.53,38.81750476]
[1738870335023,2.912e-05,189.55,189.53,39.60863746]
[1738870335219,6.509e-05,189.56,189.54,59.50525329]
[1738870335419,0.01692791,189.61,189.55,0.79088772]
[1738870335646,0.01692791,189.61,189.6,38.81750476]
[1738870336435,7.7067,189.71,189.6,38.81750476]
[1738870336436,41.45330476,189.69,189.6,38.81750476]
[1738870336651,38.81750476,189.68,189.61,38.81750476]
[1738870337049,2.6358,189.69,189.56,38.81750476]
[1738870337050,38.81750476,189.63,189.56,38.81750476]
[1738870337271,2.6358,189.69,189.5,52.00940476]
[1738870337272,38.81750476,189.62,189.51,0.79116204]
[1738870337553,38.81750476,189.62,189.55,38.81750476]
[1738870337724,2.6367,189.63,189.56,38.81750476]
[1738870337725,38.81750476,189.63,189.56,38.81750476]
[1738870338049,2.6357,189.7,189.56,0.79115475]
[1738870338263,32.6357,189.7,189.56,0.79115475]
[1738870338466,30.0,189.68,189.53,0.79094063]
[1738870338828,38.81750476,189.66,189.59,38.81750476]
[1738870339256,38.81750476,189.67,189.6,38.81750476]
[1738870340430,38.88050476,189.68,189.61,38.81750476]
[1738870340630,38.88050476,189.68,189.59,5.2745]
[1738870340631,38.81750476,189.64,189.58,38.81750476]
[1738870340933,38.81750476,189.6,189.54,44.09340476]
[1738870341131,30.0,189.62,189.53,0.03]
[1738870341354,38.81750476,189.6,189.54,38.81750476]
[1738870341537,38.81750476,189.63,189.56,38.81750476]
[1738870342142,38.81750476,189.61,189.54,38.81750476]
[1738870342341,38.81750476,189.6,189.53,44.12370476]
[1738870342542,38.81750476,189.57,189.53,0.03]
[1738870342741,6.4356,189.59,189.54,38.81750476]
[1738870343053,39.2274,189.65,189.53,0.03]
[1738870343054,38.81750476,189.62,189.55,38.81750476]
[1738870343448,38.81750476,189.63,189.56,38.81750476]
[1738870343656,47.88970476,189.64,189.57,38.81750476]
[1738870343839,6.4986,189.68,189.62,38.81750476]
[1738870344168,0.063,189.68,189.64,38.81750476]
[1738870344463,0.063,189.68,189.62,38.81750476]
[1738870344844,41.51650476,189.68,189.61,38.81750476]
[1738870345151,41.51650476,189.68,189.62,38.81750476]
[1738870345354,0.063,189.68,189.62,44.09110476]
[1738870345969,38.81750476,189.66,189.6,38.81750476]
[1738870346141,38.88050476,189.68,189.61,38.81750476]
[1738870346862,38.88050476,189.68,189.63,38.81750476]
[1738870346863,0.063,189.68,189.63,38.81750476]
[1738870347240,0.063,189.68,189.64,38.81750476]
[1738870347440,0.063,189.68,189.67,38.81750476]
[1738870347635,0.063,189.68,189.66,38.81750476]
[1738870347859,38.88050476,189.68,189.61,38.81750476]
[1738870348163,38.88050476,189.68,189.55,5.2756]
[1738870348164,30.0,189.67,189.55,5.2756]
[1738870348360,1.539,189.66,189.55,5.2756]
[1738870348676,30.0,189.63,189.48,0.79119831]
[1738870348863,30.0,189.61,189.49,5.2771]
[1738870349169,30.0,189.61,189.47,1.5288]
[1738870349375,38.81750476,189.59,189.52,38.81750476]
[1738870349741,38.81750476,189.58,189.51,38.81750476]
[1738870350041,38.81750476,189.56,189.49,38.81750476]
[1738870350243,38.81750476,189.58,189.51,38.81750476]
[1738870350448,48.10000476,189.62,189.55,38.81750476]
[1738870350651,38.81750476,189.61,189.54,38.81750476]
[1738870350858,30.0,189.61,189.46,5.2781]
[1738870351045,30.0,189.59,189.46,5.2781]
[1738870351237,30.0,189.59,189.44,7.06914229]
[1738870351438,30.0,189.57,189.45,5.2784]
[1738870351738,9.2309,189.58,189.39,14.54470546]
[1738870351739,6.2347,189.54,189.39,14.54470546]
[1738870351943,6.36019,189.54,189.42,5.2792]
[1738870352140,30.0,189.5,189.39,38.81750476]
[1738870352340,38.81750476,189.46,189.39,38.81750476]
[1738870352839,0.12549,189.52,189.36,5.2808]
[1738870352840,38.81750476,189.48,189.41,38.81750476]
[1738870353042,38.81750476,189.47,189.4,38.81750476]
[1738870353243,30.0,189.51,189.31,6.0519]
[1738870353244,38.81750476,189.45,189.38,38.81750476]
[1738870353543,2.6393,189.44,189.37,38.81750476]
[1738870353969,2.6393,189.44,189.38,38.81750476]
[1738870354759,0.11010613,189.39,189.38,38.81750476]
[1738870355440,0.11010613,189.39,189.38,39.6092477]
[1738870355871,0.11010613,189.39,189.38,44.8895477]
[1738870357361,0.11010613,189.39,189.38,38.81750476]
[1738870357566,0.11010613,189.39,189.37,38.81750476]
[1738870357737,0.11010613,189.39,189.38,38.81750476]
[1738870358245,5.716e-05,189.41,189.38,39.60930175]
[1738870358439,6.824e-05,189.43,189.42,5.2792]
[1738870358655,9.737e-05,189.45,189.42,6.07060399]
[1738870358967,8.54e-05,189.46,189.44,38.81750476]
[1738870359261,3.565e-05,189.48,189.46,1.0]
[1738870359468,3.565e-05,189.48,189.47,93.21455461]
[1738870359656,0.063,189.61,189.47,92.96357461]
[1738870359969,0.063,189.61,189.47,93.96357461]
[1738870360142,0.063,189.61,189.47,92.96357461]
[1738870360553,0.063,189.61,189.48,18.4716]
[1738870360854,38.81750476,189.6,189.53,38.81750476]
[1738870361153,30.0,189.57,189.48,38.81750476]
[1738870361357,30.0,189.57,189.46,38.81750476]
[1738870361358,38.81750476,189.53,189.46,38.81750476]
[1738870361545,38.81750476,189.52,189.44,5.2787]
[1738870361750,38.81750476,189.52,189.45,38.81750476]
[1738870362065,38.81750476,189.54,189.47,38.81750476]
[1738870362259,38.81750476,189.54,189.4,5.2798]
[1738870362260,38.81750476,189.48,189.4,5.2798]
[1738870362448,38.81750476,189.45,189.38,38.81750476]
[1738870362654,41.45680476,189.45,189.38,38.81750476]
[1738870362952,41.45610476,189.49,189.42,38.81750476]
[1738870363168,2.6386,189.49,189.43,38.81750476]
[1738870363451,2.6386,189.49,189.41,38.81750476]
[1738870363452,38.81750476,189.48,189.41,38.81750476]
[1738870363645,41.45600476,189.51,189.44,38.81750476]
[1738870364175,38.81750476,189.51,189.45,38.81750476]
[1738870364748,41.45590476,189.51,189.45,38.81750476]
[1738870365049,8.7873,189.52,189.46,38.81750476]
[1738870365368,8.7873,189.52,189.45,38.81750476]
[1738870365369,47.60480476,189.52,189.45,38.81750476]
[1738870366975,47.60480476,189.52,189.44,38.81750476]
[1738870366976,38.81750476,189.51,189.44,38.81750476]
[1738870367165,2.6385,189.51,189.45,38.81750476]
[1738870367378,44.96660476,189.52,189.45,38.81750476]
[1738870367565,6.1491,189.52,189.47,38.81750476]
[1738870367770,6.1491,189.52,189.4,39.60913715]
[1738870367771,8.7873,189.52,189.46,38.81750476]
[1738870368873,6.1491,189.52,189.48,38.81750476]
[1738870369071,75.03540476,189.58,189.51,38.81750476]
[1738870369250,75.03540476,189.58,189.42,0.79157927]
[1738870369251,2.6375,189.57,189.52,38.81750476]
[1738870369448,38.81750476,189.56,189.49,38.81750476]
[1738870369646,30.0,189.55,189.41,5.2795]
[1738870369867,30.0,189.53,189.41,5.2795]
[1738870370668,30.0,189.5,189.38,5.2803]
[1738870370853,38.81750476,189.48,189.41,38.81750476]
[1738870371064,38.81750476,189.47,189.4,38.81750476]
[1738870371587,38.81750476,189.48,189.41,38.81750476]
[1738870372068,2.6389,189.47,189.41,38.81750476]
[1738870372479,41.45640476,189.47,189.4,38.81750476]
[1738870372775,2.6389,189.47,189.41,38.81750476]
[1738870373571,2.6389,189.47,189.34,3.72660024]
[1738870373572,41.45640476,189.47,189.4,38.81750476]
[1738870373775,38.81750476,189.46,189.39,38.81750476]
[1738870374074,41.45640476,189.47,189.4,38.81750476]
[1738870374561,38.81750476,189.47,189.4,38.81750476]
[1738870374783,0.1053648,189.41,189.4,38.81750476]
[1738870376303,0.1053648,189.41,189.38,38.81750476]
[1738870377462,0.1053648,189.41,189.39,38.81750476]
[1738870378365,0.1053648,189.41,189.4,38.81750476]
[1738870379072,0.1053648,189.41,189.4,77.63500952]
[1738870379266,0.1053648,189.41,189.4,38.81750476]
[1738870380873,0.1053648,189.41,189.37,38.81750476]
[1738870381669,0.1053648,189.41,189.4,38.81750476]
[1738870382583,0.1053648,189.41,189.4,44.09730476]
[1738870383566,0.1053648,189.41,189.4,82.91480952]
[1738870383766,4.469e-05,189.42,189.4,82.91480952]
[1738870383982,7.583e-05,189.43,189.41,39.60903716]
[1738870384184,7.583e-05,189.43,189.42,38.81750476]
[1738870385187,7.583e-05,189.43,189.35,0.79170753]
[1738870385385,38.81758059,189.43,189.37,38.81750476]
[1738870385792,7.583e-05,189.43,189.38,38.81750476]
[1738870386091,7.583e-05,189.43,189.41,38.81750476]
[1738870386490,7.583e-05,189.43,189.37,38.81750476]
[1738870386875,7.583e-05,189.43,189.38,38.81750476]
[1738870387494,7.583e-05,189.43,189.4,0.03]
[1738870388268,7.583e-05,189.43,189.39,38.81750476]
[1738870388502,7.583e-05,189.43,189.4,38.81750476]
[1738870388697,7.583e-05,189.43,189.39,38.81750476]
[1738870388990,7.583e-05,189.43,189.37,38.81750476]
[1738870389375,38.81750476,189.42,189.35,38.81750476]
[1738870389593,45.21570476,189.42,189.35,38.81750476]
[1738870389805,45.21570476,189.42,189.35,44.09870476]
[1738870389985,7.583e-05,189.43,189.4,38.81750476]
[1738870390381,7.583e-05,189.43,189.42,38.81750476]
[1738870390978,7.583e-05,189.43,189.41,38.81750476]
[1738870391175,7.583e-05,189.43,189.35,19.27595415]
[1738870391176,7.583e-05,189.43,189.42,38.81750476]
[1738870391380,0.07885375,189.44,189.42,39.60923475]
[1738870391579,0.07885375,189.44,189.43,38.81750476]
[1738870391791,0.07885375,189.44,189.43,44.09640476]
[1738870392297,5.375e-05,189.44,189.43,44.09640476]
[1738870392502,0.10128894,189.46,189.43,44.09640476]
[1738870392503,4.353e-05,189.47,189.43,77.78005329]
[1738870392671,7.3e-07,189.48,189.46,77.63500952]
[1738870392873,6.83e-05,189.5,189.47,93.83811029]
[1738870393176,0.063,189.61,189.51,1.0]
[1738870393384,0.063,189.61,189.53,13.41184853]
[1738870393616,0.063,189.61,189.6,38.81750476]
[1738870393895,0.063,189.61,189.6,44.09170476]
[1738870394480,0.063,189.61,189.6,82.90920952]
[1738870394824,0.16031485,189.61,189.6,83.70000834]
[1738870395482,0.16031485,189.61,189.6,44.88250358]
[1738870395804,0.16031485,189.61,189.6,83.70000834]
[1738870396171,0.16031485,189.61,189.6,44.88250358]
[1738870396590,0.16031485,189.61,189.6,83.70000834]
[1738870397181,0.16031485,189.61,189.59,38.81750476]
[1738870397394,0.16031485,189.61,189.57,38.81750476]
[1738870397598,0.16031485,189.61,189.56,38.81750476]
[1738870398007,0.16031485,189.61,189.6,38.81750476]
[1738870398501,0.16031485,189.61,189.53,5.2762]
[1738870398701,2.79741485,189.61,189.49,5.277]
[1738870399118,0.16031485,189.61,189.58,38.81750476]
[1738870399602,0.16031485,189.61,189.59,38.81750476]
[1738870399798,0.16031485,189.61,189.6,38.81750476]
[1738870400519,0.16031485,189.61,189.6,44.09170476]
[1738870400675,0.16031485,189.61,189.6,82.90920952]
[1738870401793,0.16031485,189.61,189.6,38.81750476]
[1738870402180,0.16031485,189.61,189.57,38.81750476]
[1738870402390,0.16031485,189.61,189.58,38.81750476]
[1738870402596,0.16031485,189.61,189.54,0.7911204]
[1738870403712,0.16031485,189.61,189.6,38.81750476]
[1738870404520,0.16031485,189.61,189.6,44.09170476]
[1738870404686,0.16031485,189.61,189.6,82.90920952]
[1738870405314,0.16031485,189.61,189.6,83.69998501]
[1738870405602,0.16031485,189.61,189.6,38.81750476]
[1738870405811,0.16031485,189.61,189.6,44.09170476]
[1738870406503,0.16031485,189.61,189.6,38.81750476]
[1738870406892,0.16031485,189.61,189.58,38.81750476]
[1738870407485,0.16031485,189.61,189.57,38.81750476]
[1738870407688,0.16031485,189.61,189.6,38.81750476]
[1738870408005,0.16031485,189.61,189.59,38.81750476]
[1738870408305,0.16031485,189.61,189.6,38.81750476]
[1738870408685,0.16031485,189.61,189.59,38.81750476]
[1738870408881,0.16031485,189.61,189.58,38.81750476]
[1738870409280,0.16031485,189.61,189.57,38.81750476]
[1738870409528,0.16031485,189.61,189.56,38.81750476]
[1738870410208,0.16031485,189.61,189.5,39.63869551]
[1738870410209,45.39860476,189.6,189.53,38.81750476]
[1738870410785,45.39860476,189.6,189.51,38.81750476]
[1738870410786,38.81750476,189.58,189.51,38.81750476]
[1738870410985,8.2094,189.6,189.54,38.81750476]
[1738870411189,8.2094,189.6,189.55,38.81750476]
[1738870411403,6.5811,189.6,189.57,38.81750476]
[1738870411589,6.5811,189.6,189.51,0.03]
[1738870412607,6.5811,189.6,189.56,38.81750476]
[1738870412806,9.2182,189.6,189.54,38.81750476]
[1738870413201,38.81750476,189.59,189.52,38.81750476]
[1738870413404,78.03570476,189.6,189.53,38.81750476]
[1738870413796,9.2182,189.6,189.54,38.81750476]
[1738870414015,6.5811,189.6,189.57,38.81750476]
[1738870414215,0.16031485,189.61,189.59,38.81750476]
[1738870414721,0.11501247,189.6,189.58,38.81750476]
[1738870415415,0.11501247,189.6,189.59,38.81750476]
[1738870417007,0.11501247,189.6,189.58,38.81750476]
[1738870417332,0.11501247,189.6,189.57,38.81750476]
[1738870417619,2.75221247,189.6,189.55,38.81750476]
[1738870417792,41.56971723,189.6,189.54,38.81750476]
[1738870418329,71.56971723,189.6,189.53,38.81750476]
[1738870418829,71.56971723,189.6,189.56,38.81750476]
[1738870418830,1.75291247,189.6,189.56,38.81750476]
[1738870419128,4.39001247,189.6,189.54,38.81750476]